Cogmind - Beta 13 @@@ ROGUE MODE // 2024.07.11 @ 02:49:35 Player: ThatBishHoly Result: Destroyed by G-34 Mercenary with Small Laser Performance ------------- Evolutions (0) 0 Regions Visited (1) 200 Robots Destroyed (6) 30 Value Destroyed (157) 157 Prototype IDs (0) 0 Alien Tech Used (0) 0 Bonus (0) 0 TOTAL SCORE: 387 Bonus ------- None Cogmind --------- Core Integrity 0/250 Matter 191/300 Energy 60/100 System Corruption 1% Temperature Cool (6) Movement Rolling (80) Location -10/Materials Parts ------- > --- POWER (1) -------- (None) > --- PROPULSION (2) --- Wheel Wheel > --- UTILITY (2) ------ Medium Storage Unit > --- WEAPON (2) ------- (None) > --- INVENTORY (10) --- VTOL Module VTOL Module VTOL Module VTOL Module Visual Processing Unit Sensor Array Signal Interpreter Peak State ------------ > --- POWER ------------ Ion Engine > --- PROPULSION ------- Compact Wheel Compact Wheel > --- UTILITY ---------- Medium Storage Unit Shield Generator > --- WEAPON ----------- Assault Rifle Light Assault Rifle > --- INVENTORY -------- VTOL Module VTOL Module VTOL Module VTOL Module Sensor Array Grenade Launcher [Rating: 9] Favorites ----------- Power Ion Engine Engine Ion Engine Propulsion Compact Wheel Leg Aluminum Leg Wheel Compact Wheel Utility Medium Storage Unit Device Shield Generator Storage Medium Storage Unit Weapon Light Assault Rifle Ballistic Gun Light Assault Rifle Launcher Grenade Launcher Build | -11 -10 ------- Run | Yrd Mat Slots Evolved . | . . Power . | . . Propulsion . | . . Utility . | . . Weapon . | . . Parts Attached 19 | 6 13 Power 2 | 1 1 Engine 2 | 1 1 Core . | . . Reactor . | . . Propulsion 7 | 2 5 Treads . | . . Leg 1 | . 1 Wheel 6 | 2 4 Hover . | . . Flight . | . . Utility 4 | 1 3 Device 2 | . 2 Storage 2 | 1 1 Processor . | . . Hackware . | . . Protection . | . . Artifact . | . . Weapon 6 | 2 4 Energy Gun . | . . Energy Cannon . | . . Ballistic Gun 5 | 2 3 Ballistic Cannon . | . . Launcher 1 | . 1 Special Weapon . | . . Impact Weapon . | . . Slashing Weapon . | . . Piercing Weapon . | . . Special Melee Weapon . | . . Unidentified Prototypes . | . . Parts Lost 7 | . 7 Power 1 | . 1 Propulsion 2 | . 2 Utility 1 | . 1 Weapon 3 | . 3 Highest Loss Streak 6 | . 6 To Critical Strikes . | . . Average Slot Usage (%) 71 | . 71 Engine 8 | . 8 Leg 1 | . 1 Wheel 17 | . 17 Device 8 | . 8 Storage 14 | . 14 Ballistic Gun 19 | . 19 Naked Turns . | . . Heaviest Build 22 | 13 22 Greatest Support 32 | 32 32 Greatest Overweight (x) 3 | . 3 Average Overweight (x) . | . . Largest Inventory Capacity 10 | 8 10 Average Capacity 9 | 6 9 Most Carried 10 | 3 10 Average Carried 5 | . 6 Final Capacity 10 | 8 10 Final Carried 7 | . 7 Class Distribution -------------------- 100% | Mutant Dominant Class ---------------- Mutant | -10/Materials Resources | -11 -10 ----------- Run | Yrd Mat Matter Collected 381 | 260 121 Remotely . | . . Salvage Created 157 | . 157 Parts 13 | . 13 Haulers Intercepted . | . . Recyclers Shooed . | . . Parts Field Recycled . | . . Retrieved Matter . | . . Parts Self-Destructed . | . . Prevented . | . . Kills | -11 -10 ------- Run | Yrd Mat Combat Hostiles Destroyed 4 | . 4 Guns 2 | . 2 AOE 2 | . 2 Classes Destroyed 3 | . 3 Builder 1 | . 1 Watcher 1 | . 1 Grunt 4 | . 4 Best Kill Streak 4 | . 4 Combat Bots Only 3 | . 3 Max Kills in Single Turn 2 | . 2 Gunslinging . | . . Exploded 1 | . 1 Melee . | . . Uniques/NPCs Destroyed . | . . Combat | -11 -10 -------- Run | Yrd Mat Hostile Shots Fired 76 | . 76 Missed 16 | . 16 Damage Taken 716 | . 716 Core 254 | . 254 Absorbed by Shields 130 | . 130 Core Remaining (%) 100 | 100 . Volleys Fired 33 | . 33 Largest 2 | . 2 Hottest 50 | . 50 Shots Fired 52 | . 52 Gun 48 | . 48 Cannon . | . . Launcher 4 | . 4 Special . | . . Kinetic 48 | . 48 Thermal . | . . Explosive 4 | . 4 Electromagnetic . | . . Robot Hit Streak 8 | . 8 Robot Miss Streak 3 | . 3 Penetration Max . | . . Secondary Targets . | . . Shots Hit Robots 30 | . 30 Core Hits 13 | . 13 Critical Kills . | . . Critical Parts Destroyed . | . . Critical Strikes . | . . Melee Attacks . | . . Impact . | . . Slashing . | . . Piercing . | . . Sneak Attacks . | . . Combat Hostiles . | . . Follow-up Attacks . | . . Damage Inflicted 533 | . 533 Guns 263 | . 263 Cannons . | . . Explosions 270 | . 270 Melee . | . . Ramming . | . . Kinetic 263 | . 263 Thermal . | . . Explosive 270 | . 270 Electromagnetic . | . . Impact . | . . Slashing . | . . Piercing . | . . Highest Corruption 1 | . 1 Average Corruption 1 | . 1 Corruption Purged . | . . Corruption Blocked . | . . Effects 1 | . 1 Matter Fused 1 | . 1 Overload Shots . | . . Overflow Damage 13 | . 13 Projectiles . | . . Explosions 13 | . 13 Melee . | . . Knockbacks . | . . Impact . | . . Kinetic . | . . Secondary . | . . Self-Inflicted Damage 40 | . 40 Shots 2 | . 2 Rammed . | . . Targets Rammed . | . . Kicked . | . . Crushed . | . . Highest Temperature 33 | . 33 Average Temperature 9 | . 9 Received Heat Transfer 343 | . 343 Siege Activations . | . . Robots Corrupted . | . . Combat Hostiles . | . . Parts Fried . | . . Impact Corruptions . | . . Robots Melted . | . . Combat Hostiles . | . . Parts Melted . | . . Heat Transferred . | . . Parts Sabotaged . | . . Parts Stolen . | . . Parts Stripped . | . . Power Chain Reactions . | . . Alert | -11 -10 ------- Run | Yrd Mat Peak Influence 113 | . 113 Initial . | . . Average 33 | . 39 Maximum Alert Level . | . . Low Security (%) 100 | 100 100 Level 1 . | . . Level 2 . | . . Level 3 . | . . Level 4 . | . . Level 5 . | . . High Security . | . . Max Security . | . . Squads Dispatched 1 | . 1 Investigation 1 | . 1 Extermination . | . . Reinforcement . | . . Assault . | . . Garrison . | . . Intercept . | . . Searches Triggered . | . . Construction Impeded . | . . Haulers Reinforced . | . . Active Scanning Responses . | . . Cargo Convoy Interrupts . | . . Stealth | -11 -10 --------- Run | Yrd Mat Distress Signals . | . . Communications Jammed . | . . Distress Signals . | . . Times Spotted 13 | . 13 Peak Tracking Total 5 | . 5 Tactical Retreats 2 | . 2 Traps | -11 -10 ------- Run | Yrd Mat Traps Triggered 5 | . 5 Indirectly . | . . Trap Hack Attempts . | . . Triggered . | . . Disarmed . | . . Reprogrammed . | . . Reused . | . . Traps Extracted . | . . Installed . | . . Triggered . | . . Machines | -11 -10 ---------- Run | Yrd Mat Machines Disabled . | . . Max in Single Turn . | . . Machines Repaired . | . . Machines Dismantled . | . . Machines Sabotaged . | . . Overloaded Fab Kills . | . . Hacking | -11 -10 --------- Run | Yrd Mat Machines Accessed 1 | . 1 Terminals 1 | . 1 Fabricators . | . . Repair Stations . | . . Recycling Units . | . . Scanalyzers . | . . Garrison Access . | . . Total Hacks 2 | . 2 Successful . | . . Failed 2 | . 2 Catastrophic 1 | . 1 Database Lockouts . | . . Manual . | . . Terminals 2 | . 2 Fabricators . | . . Repair Stations . | . . Recycling Units . | . . Scanalyzers . | . . Garrison Access . | . . Terminal Hacks . | . . Fabricator Hacks . | . . Repair Station Hacks . | . . Recycling Unit Hacks . | . . Scanalyzer . | . . Garrison Access Hacks . | . . Unauthorized Hacks . | . . Terminals . | . . Fabricators . | . . Repair Stations . | . . Recycling Units . | . . Scanalyzers . | . . Garrison Access . | . . Data Cores Recovered . | . . Used . | . . Hacking Detections 1 | . 1 Full Trace Events 1 | . 1 Feedback Events . | . . Feedback Blocked . | . . Robot Schematics Acquired . | . . Robots Built . | . . Authchips . | . . Time . | . . Total Robot Build Rating . | . . Part Schematics Acquired . | . . Parts Built . | . . Authchips . | . . Time . | . . Total Part Build Rating . | . . Parts Repaired . | . . Time . | . . Parts Recycled . | . . Recycled Matter . | . . Retrieved Matter . | . . Retrieved Components . | . . Parts Scanalyzed . | . . Part Schematics Acquired . | . . Parts Damaged . | . . Bothacking | -11 -10 ------------ Run | Yrd Mat Used RIF Installer . | . . Robots Hacked . | . . Non-combat . | . . Combat . | . . Robot Hacks Applied . | . . Relay Couplers Released . | . . Fabnet Peak Effective % . | . . Robots Rewired . | . . Allies Hacked . | . . Hacks Repelled . | . . Allies | -11 -10 -------- Run | Yrd Mat Total Allies . | . . Largest Group . | . . Highest-Rated Group . | . . Highest-Rated Ally . | . . Total Orders . | . . Ally Attacks . | . . Total Damage . | . . Kills . | . . Allies Corrupted . | . . Allies Melted . | . . Intel | -11 -10 ------- Run | Yrd Mat Robot Analysis Total . | . . Derelict Logs Recovered . | . . Drone Launches . | . . Drone Recoveries . | . . Exploration | -11 -10 ------------- Run | Yrd Mat Turns Passed 330 | 47 283 Spaces Moved 181 | 40 141 Core 24 | 8 16 Treads . | . . Legs 25 | . 25 Wheels 132 | 32 100 Hover . | . . Flight . | . . Fastest Speed 50 | 50 100 Average Speed 112 | 90 119 Slowest Speed 200 | 100 200 Overloaded Moves . | . . Propulsion Burnouts . | . . Robots Hopped . | . . Cave-ins Triggered . | . . Exploration Rate (%) 14 | 3 26 Regions Visited 1 Branch Regions . Pre-discovered Areas . | . . Known Exits Taken . | . . Unknown Exits Taken 1 | 1 . Scrap Searched . | . . Spaces Dug . | . . Terrain Destroyed 17 | . 17 Melee . | . . Projectile . | . . AOE 17 | . 17 Terrain Rammed . | . . Walls Destroyed . | . . Machines Disabled . | . . Actions | -11 -10 --------- Run | Yrd Mat Total 261 | 51 210 Wait 2 | . 2 Move 180 | 39 141 Hop . | . . Pick Up 25 | 6 19 Fast Attach . | . . Attach 17 | 6 11 Detach . | . . Swap 2 | . 2 Drop 2 | . 2 Fire 33 | . 33 Melee . | . . Ram . | . . Kick . | . . Crush . | . . Escape Stasis . | . . Rewire . | . . Trap . | . . Miscellaneous . | . . Route ------- -11/Scrapyard -10/Materials (discovered 1 exit: [*Min]) History --------- Turn | Location | Event 27 | -11/Scrapyard | Discovered new exit (range 15) 48 | -11/Scrapyard | Entered Materials 237 | -10/Materials | Core integrity fell below 50% 274 | -10/Materials | Core integrity fell below 20% 275 | -10/Materials | Lost 6 parts (1p2n1u2w) 303 | -10/Materials | Discovered new exit (range 8) 311 | -10/Materials | Build established: Mutant 331 | -10/Materials | Destroyed by G-34 Mercenary with Small Laser Last Messages --------------- 00282_ U-05 Engineer builds a Wall. 00283_ R-06 Scavenger collects Lgt. Ion Engine. 00285_ Acquired 38 matter. 00286_ U-05 Engineer builds a Wall. 00289_ Acquired Aluminum Leg. 00291_ U-05 Engineer builds a Wall. 00295_ U-05 Engineer lays Concrete. 00298_ U-05 Engineer builds a Wall. 00301_ K-01 Serf collects debris. 00303_ EXIT=FOUND 00305_ U-05 Engineer builds a Wall. 00305_ Triggered EMP Trap. 00305_ A bubble of electromagnetic force engulfs the area. 00305_ Lgt. Assault Rifle destroyed. 00305_ Neutrino Reactor explodes. 00305_ K-01 Serf destroyed. 00308_ System corrupted: Matter fused (-9). 00314_ Acquired 25 matter. 00316_ Acquired Wheel. 00330_ Dropped Aluminum Leg. Map ----- +----------------------------------------------------+ | ??????????????????????????????????? | | ??????????????????????????????????? | | ??????????????????????????????????? | | ?????????????????#####????????????? | | ????????????????##"""##???????????? | | ???????????????##"|||"##??????????? | | ???????????????#"" ""#??????????? | | ???????????????# #??????????? | | ???????????????# < ???????????? | | ???????????????# ???######### | | ???????????????# ????# # | | ????????????????# ????# # | | ?????????????????# #????# # | | ????????????###### ###### # | | ????????????+ ^ # | | ????????????# # | | ?????? ????# # [ # | | ????? ??# # # | | ???? # ^ # # | | ?????"" /a g # # | | ????????????# # ! # | | ????????????# g* #+# ##### | | ????????????# %%# # | | ????????????###" "### """ # | | ??????????????#"T"??# "T" # | | ??????????????#"""??# %@ " " # | | ??????????????####??# = = # | | ????????????????????# #! =# | | ???????????????????####+# # | | ???????????????????# ####### | | ???????????????????# !#?????? | | ???????????????????# #?????? | | ???????????????????# w #?????? | | ???????????????????# #?????? | | ???????????????????# #?????? | | ???????????????????# #?????? | | ???????????????????# #?????? | | ???????????????????# #?????? | | ???????????????????########+##????? | | ?????????????????????????# #????? | | ?????????????????????????# #????? | | ?????????????????????????# #????? | | ?????????????????????????# #????? | | ??????????????????######## #????? | | ??????????????????# # #????? | | ??????????????????# """ # #????? | | ??????????????????# """ + ^ ####?? | | ??????????????????# """ # !##? | | ??????????????????# """ # !#? | | ??????????????????# # !#? | +----------------------------------------------------+ Best States ------------- Heat Dissipation 25 Energy Generation 10 Energy Capacity 250 Matter Stores 300 Matter Capacity 300 Sight Range 16 Terrain Scan Density 10 Evasion (%) 50 Item Schematics ----------------- None Robot Schematics ------------------ None Fabricated ------------ Nothing Alien Tech Used ----------------- None Achievements -------------- None Challenges ------------ None Game ------ Seed RelayCompositePlating Manual? 0 Play Time 00:05:52 Cumulative 50.6 hours Start 2024.07.11 @ 02:44:30 End 2024.07.11 @ 02:49:35 Sessions 1 Manual Loads 0 Difficulty Rogue Special Mode None Game No. 138 Rogue 138 Adventurer 0 Explorer 0 Win Type - Total 0 Types 0/0/0/0/0/0/0/0/0 Lore% 21 Gallery% 38 Achievement% 26 Wizard Run 0 Options --------- Layout 0 ASCII 0 Keyboard 0 Movement Mouse Keybinds 0 Fullscreen 1 Font 12/Smallcaps Map View 38x28 Zoom Use 99% Tactical HUD 1 Map Filters NONE Filters NONE Steam SD RUN: 51af4091-3401-489d-8c46-02f051c70974